bitfinex-derivatives/quotes_BNBF0:USTF0_20250715
["timestamp","ask_amount","ask_price","bid_price","bid_amount"]
[1752567668073,0.98476231,678.22,677.26,0.9910973]
[1752567668475,0.98476231,678.23,677.26,0.9910973]
[1752567668674,0.98476231,678.2,677.28,0.9910973]
[1752567668870,0.98476231,678.21,677.27,0.9910973]
[1752567669077,0.98476231,678.12,677.13,0.9910973]
[1752567669270,0.98476231,678.1,677.13,0.9910973]
[1752567669571,0.98476231,678.06,677.14,0.9910973]
[1752567669774,0.98476231,678.06,677.19,0.9910973]
[1752567669971,0.98476231,678.12,677.22,0.9910973]
[1752567670170,0.25648301,678.76,677.18,0.9910973]
[1752567670171,2.09035121,678.18,677.18,0.9910973]
[1752567670370,1.1055889,678.17,677.22,0.9910973]
[1752567670571,1.1055889,678.16,677.21,0.9910973]
[1752567670771,1.1055889,678.15,677.22,0.9910973]
[1752567671076,1.970809,678.62,677.03,1.318961]
[1752567671077,1.1055889,678.14,677.23,0.9910973]
[1752567671274,1.1055889,678.13,677.24,0.9910973]
[1752567671575,1.1055889,678.12,677.25,0.9910973]
[1752567671776,1.1055889,678.11,677.25,0.9910973]
[1752567671976,1.1055889,678.1,677.25,0.9910973]
[1752567672172,1.1055889,678.09,677.25,0.9910973]
[1752567672371,1.1055889,678.08,677.26,0.9910973]
[1752567672573,1.1055889,678.07,677.26,0.9910973]
[1752567672777,0.98476231,678.28,677.3,0.9910973]
[1752567673276,0.98476231,678.27,677.31,0.9910973]
[1752567673673,0.98476231,678.28,677.31,0.9910973]
[1752567673877,0.98476231,678.25,677.32,0.9910973]
[1752567674277,0.98476231,678.26,677.32,0.9910973]
[1752567674478,0.98476231,678.25,677.33,0.9910973]
[1752567675174,1.1060089,678.37,677.33,0.9910973]
[1752567675175,0.98476231,678.24,677.33,0.9910973]
[1752567675478,0.98476231,678.23,677.34,0.9910973]
[1752567676373,0.98476231,678.23,677.35,0.9910973]
[1752567676578,0.98476231,678.22,677.18,1.318961]
[1752567677374,2.09077121,678.27,677.13,1.318961]
[1752567677576,2.09132605,678.26,677.14,1.318961]
[1752567677775,2.09132605,678.25,677.14,1.318961]
[1752567678074,1.10656374,678.24,677.13,1.318961]
[1752567678377,1.10656374,678.23,677.15,1.318961]
[1752567678578,1.10656374,678.22,677.15,1.318961]
[1752567678777,1.10656374,678.21,677.1,1.318961]
[1752567678982,1.10656374,678.2,677.12,1.318961]
[1752567679178,1.10656374,678.19,677.12,1.318961]
[1752567679376,1.10656374,678.18,677.13,1.318961]
[1752567679580,1.10656374,678.17,677.13,1.318961]
[1752567679780,1.10656374,678.16,677.13,1.318961]
[1752567679981,1.10656374,678.15,677.13,1.318961]
[1752567680177,1.10656374,678.14,677.13,1.318961]
[1752567680377,1.10656374,678.13,677.19,1.318961]
[1752567680580,1.10656374,678.12,677.18,1.318961]
[1752567680877,0.98476231,678.29,677.19,1.318961]
[1752567681077,0.98476231,678.3,677.17,1.318961]
[1752567681276,0.98476231,678.3,677.18,1.318961]
[1752567681477,0.98476231,678.29,677.19,1.318961]
[1752567681678,0.98476231,678.26,677.23,1.318961]
[1752567681879,0.98476231,678.26,677.24,1.318961]
[1752567682078,0.98476231,678.24,677.27,1.318961]
[1752567682280,0.98476231,678.23,677.29,1.318961]
[1752567682478,0.98476231,678.28,677.29,1.318961]
[1752567682682,0.98476231,678.28,677.12,1.978441]
[1752567682683,0.98476231,678.28,677.33,1.318961]
[1752567683484,0.98476231,678.28,677.34,1.318961]
[1752567684380,0.98476231,678.26,677.36,1.318961]
[1752567685483,0.98476231,678.26,677.37,1.318961]
[1752567686382,1.970809,678.59,676.55,3.297403]
[1752567686383,0.98476231,678.28,677.4,1.318961]
[1752567686879,0.98476231,678.33,677.48,1.318961]
[1752567687084,0.98476231,678.33,676.59,3.297403]
[1752567687085,0.98476231,678.36,677.44,1.318961]
[1752567687284,0.98476231,678.38,677.46,1.318961]
[1752567691383,0.98476231,678.38,677.45,1.318961]
[1752567692189,0.98476231,678.44,677.51,1.318961]
[1752567692882,0.98476231,678.46,677.49,1.318961]
[1752567693184,0.98476231,678.45,677.49,1.318961]
[1752567693386,0.25648301,678.76,676.23,4.616364]
[1752567693387,0.98476231,678.49,677.52,1.318961]
[1752567694384,0.98476231,678.49,677.51,1.318961]
[1752567695390,0.98476231,678.5,677.49,1.318961]
[1752567695590,0.98476231,678.47,677.55,1.318961]
[1752567696089,0.98476231,678.52,677.6,1.318961]
[1752567696389,0.98476231,678.53,677.59,1.318961]
[1752567696989,1.1090043,678.59,677.48,1.318961]
[1752567697189,1.1090043,678.58,677.47,1.318961]
[1752567697387,1.1090043,678.57,677.47,1.318961]
[1752567697590,1.1090043,678.56,677.48,1.318961]
[1752567697786,1.1090043,678.55,677.45,1.318961]
[1752567697987,1.1090043,678.54,677.45,1.318961]
[1752567698192,1.1090043,678.53,677.4,1.318961]
[1752567698392,1.1090043,678.52,677.4,1.318961]
[1752567698593,1.1090043,678.51,677.4,1.318961]
[1752567698795,1.1090043,678.5,677.4,1.318961]
[1752567699094,1.1090043,678.49,677.4,1.318961]
[1752567699389,1.1090043,678.48,677.39,1.318961]
[1752567699593,1.1090043,678.47,677.39,1.318961]
[1752567699794,1.1090043,678.46,677.39,1.318961]
[1752567699991,1.1090043,678.45,677.4,1.318961]
[1752567700197,0.98476231,678.41,677.55,1.318961]
[1752567700389,0.98476231,678.42,677.55,1.318961]
[1752567700693,2.09376661,678.42,677.55,1.318961]
[1752567700894,1.1090043,678.41,677.55,1.318961]
[1752567701191,1.1090043,678.4,677.55,1.318961]
[1752567701490,1.1090043,678.39,677.54,1.318961]
[1752567701694,1.1090043,678.38,677.54,1.318961]
[1752567701890,1.1090043,678.37,677.54,1.318961]
[1752567702092,1.1090043,678.36,677.54,1.318961]
[1752567702295,1.1090043,678.35,677.54,1.318961]
[1752567702590,0.98476231,678.42,677.53,1.318961]
[1752567703497,0.98476231,678.43,677.53,1.318961]
[1752567704600,0.98476231,678.47,677.47,1.318961]
[1752567705202,0.98476231,678.48,677.48,1.318961]
[1752567705400,0.98476231,678.48,677.47,1.318961]
[1752567706203,0.98476231,678.47,677.47,1.318961]
[1752567706404,0.98476231,678.48,677.46,1.318961]
[1752567706701,0.98476231,678.47,677.46,1.318961]
[1752567706905,0.98476231,678.48,677.46,1.318961]
[1752567707404,0.98476231,678.48,677.45,1.318961]
[1752567708003,0.98476231,678.48,677.46,1.318961]
[1752567708403,0.98476231,678.52,677.5,1.318961]
[1752567708802,1.1075479,678.62,676.69,3.297403]
[1752567708803,0.98476231,678.53,677.49,1.318961]
[1752567709302,0.98476231,678.58,677.52,1.318961]
[1752567710003,0.98476231,678.57,677.53,1.318961]
[1752567710406,0.98476231,678.58,677.52,1.318961]
[1752567711010,0.98476231,678.59,677.5,1.318961]
[1752567711207,0.98476231,678.64,677.55,1.318961]
[1752567711411,0.98476231,678.64,677.54,1.318961]
[1752567711809,0.98476231,678.62,677.56,1.318961]
[1752567712207,0.98476231,678.63,677.56,1.318961]
[1752567712508,0.98476231,678.65,677.57,1.318961]
[1752567712708,0.98476231,678.67,677.59,1.318961]
[1752567712911,1.1075479,678.68,677.64,1.318961]
[1752567713210,1.1075479,678.68,677.48,1.978441]
[1752567713211,1.1075479,678.67,677.62,1.318961]
[1752567713411,1.1075479,678.66,677.62,1.318961]
[1752567713613,1.1063127,678.65,677.62,1.318961]
[1752567713813,1.1063127,678.64,677.62,1.318961]
[1752567714116,1.1063127,678.63,677.62,1.318961]
[1752567714312,1.1063131,678.62,677.6,1.318961]
[1752567714609,1.1063131,678.61,677.6,1.318961]
[1752567714810,1.1063131,678.6,677.61,1.318961]
[1752567715016,1.1063131,678.59,677.61,1.318961]
[1752567715208,1.1058503,678.58,677.61,1.318961]
[1752567715410,0.98476231,678.73,677.59,1.318961]
[1752567715609,0.98476231,678.73,677.6,1.318961]
[1752567716310,0.98476231,678.73,677.58,1.318961]
[1752567717510,0.98476231,678.74,677.56,1.318961]
[1752567717714,0.98476231,678.75,677.56,1.318961]
[1752567718315,0.98476231,678.78,677.58,1.318961]
[1752567718714,0.98476231,678.77,677.59,1.318961]
[1752567718917,0.98476231,678.78,677.6,1.318961]
[1752567719414,0.98476231,678.78,676.78,3.297403]
[1752567719415,0.98476231,678.78,677.59,1.318961]
[1752567719617,0.98476231,678.78,677.58,1.318961]
[1752567720018,0.98476231,678.8,677.56,1.318961]
[1752567720420,1.1057953,678.85,677.63,1.318961]
[1752567720616,1.1057953,678.84,677.63,1.318961]
[1752567720918,1.1057953,678.83,677.62,1.318961]
[1752567721116,1.1057953,678.82,677.65,1.318961]
[1752567721314,1.1057953,678.82,677.48,1.978441]
[1752567721315,1.1057953,678.81,677.63,1.318961]
[1752567721514,2.09055761,678.85,677.63,1.318961]
[1752567721721,1.10545106,678.84,677.63,1.318961]
[1752567721917,2.09021337,678.83,677.67,1.318961]
[1752567722115,1.10545106,678.82,677.67,1.318961]
[1752567722416,1.10489199,678.81,677.61,1.318961]
[1752567722620,1.10489199,678.8,677.59,1.318961]
[1752567722917,1.10483419,678.79,677.58,1.318961]
[1752567723121,1.10483419,678.78,677.6,1.318961]
[1752567723322,1.10483419,678.77,677.6,1.318961]
[1752567723520,1.10483419,678.76,677.6,1.318961]
[1752567723722,1.10483419,678.75,677.6,1.318961]
[1752567723919,1.10483419,678.74,677.57,1.318961]
[1752567724120,1.10483419,678.73,677.57,1.318961]
[1752567724321,0.98476231,678.84,677.57,1.318961]
[1752567724824,1.1046022,678.85,677.62,1.318961]
[1752567725124,1.1046022,678.84,677.6,1.318961]
[1752567725421,1.1046022,678.83,677.6,1.318961]
[1752567725622,1.1046022,678.82,677.63,1.318961]
[1752567725820,1.1046022,678.81,677.63,1.318961]
[1752567726021,1.1046022,678.8,677.63,1.318961]
[1752567726222,1.1046022,678.79,677.65,1.318961]
[1752567726423,1.1046022,678.78,677.66,1.318961]
[1752567726621,1.1046022,678.77,677.66,1.318961]
[1752567726822,0.98476231,678.93,677.67,1.318961]
[1752567727020,1.1042364,678.95,677.62,1.318961]
[1752567727226,1.1042364,678.94,677.62,1.318961]
[1752567727424,0.25646884,678.96,676.32,4.616364]
[1752567727425,1.1042364,678.93,677.68,1.318961]
[1752567727720,1.1042364,678.92,677.69,1.318961]
[1752567727923,1.1042364,678.91,677.68,1.318961]
[1752567728125,1.1042364,678.9,677.68,1.318961]
[1752567728423,1.1042364,678.89,677.67,1.318961]
[1752567728721,1.1042364,678.88,677.66,1.318961]
[1752567728925,1.1042364,678.87,677.67,1.318961]
[1752567729223,1.1042364,678.86,677.65,1.318961]
[1752567729422,1.1042364,678.85,677.67,1.318961]
[1752567729625,1.24119996,679.07,677.7,1.318961]
[1752567729922,1.313873,679.26,677.79,1.318961]
[1752567729923,1.1037181,679.06,677.79,1.318961]
[1752567730126,1.1037181,679.05,677.79,1.318961]
[1752567730327,1.1037181,679.04,677.78,1.318961]
[1752567730628,1.1035784,679.03,677.84,1.318961]
[1752567730824,1.1035784,679.02,677.84,1.318961]
[1752567731029,1.1035784,679.01,677.88,1.318961]
[1752567731328,1.1035784,679.0,677.86,1.318961]
[1752567731527,1.1035784,678.99,677.86,1.318961]
[1752567731825,1.1035784,678.98,677.83,1.318961]
[1752567732127,1.1035784,678.97,677.83,1.318961]
[1752567732327,1.1035784,678.97,677.66,1.978441]
[1752567732328,1.1035784,678.96,677.8,1.318961]
[1752567732628,1.1035784,678.95,677.8,1.318961]
[1752567732925,1.1035784,678.94,677.8,1.318961]
[1752567733125,1.1035784,678.93,677.8,1.318961]
[1752567733325,0.25642821,679.15,677.79,1.318961]
[1752567733529,1.1034419,679.14,677.79,1.318961]
[1752567733824,1.1034419,679.13,677.79,1.318961]
[1752567734024,1.1034419,679.12,677.81,1.318961]
[1752567734329,1.1034419,679.11,677.8,1.318961]
[1752567734523,1.1034419,679.1,677.82,1.318961]
[1752567734728,1.1034419,679.09,677.82,1.318961]
[1752567734928,1.1034419,679.08,677.82,1.318961]
[1752567735126,1.1034419,679.07,677.8,1.318961]
[1752567735325,1.1034419,679.07,676.95,3.297403]
[1752567735326,1.1034419,679.06,677.79,1.318961]
[1752567735631,1.1034419,679.05,677.79,1.318961]
[1752567735927,1.1034419,679.04,677.79,1.318961]
[1752567736126,1.1034419,679.03,677.79,1.318961]
[1752567736330,1.1034419,679.02,677.79,1.318961]
[1752567736526,1.1034419,679.01,677.79,1.318961]
[1752567736728,1.1034419,679.0,677.79,1.318961]
[1752567736928,1.1034419,678.99,677.79,1.318961]
[1752567737127,1.1034419,678.98,677.79,1.318961]
[1752567737426,1.1034419,678.97,677.78,1.318961]
[1752567737728,1.1034419,678.96,677.78,1.318961]
[1752567737928,0.25642821,679.15,677.78,1.318961]
[1752567739527,0.25642821,679.15,677.77,1.318961]
[1752567740227,0.25642821,679.15,677.76,1.318961]
[1752567740427,0.25642821,679.15,677.77,1.318961]
[1752567741231,0.25642821,679.15,677.76,1.318961]
[1752567741529,1.35968921,679.15,677.75,1.318961]
[1752567741729,1.103261,679.14,677.78,1.318961]
[1752567741931,1.103261,679.13,677.77,1.318961]
[1752567742229,1.103261,679.12,677.73,1.318961]
[1752567742532,1.1034835,679.11,677.73,1.318961]
[1752567742734,1.1034835,679.1,677.73,1.318961]
[1752567742929,1.1034835,679.09,677.72,1.318961]
[1752567743228,1.1034835,679.08,677.71,1.318961]
[1752567743532,1.1034835,679.07,677.72,1.318961]
[1752567743733,1.1034835,679.06,677.71,1.318961]
[1752567743931,0.25637342,679.24,677.71,1.318961]
[1752567745128,0.25637342,679.24,677.76,1.318961]
[1752567745326,0.25637342,679.24,677.56,1.978441]
[1752567745327,1.35999672,679.24,677.78,1.318961]
[1752567745532,1.1036233,679.23,677.78,1.318961]
[1752567745732,1.1036233,679.22,677.78,1.318961]
[1752567745933,1.1036233,679.21,677.78,1.318961]
[1752567746129,1.1036233,679.2,677.79,1.318961]
[1752567746330,1.1036233,679.19,677.79,1.318961]
[1752567746530,1.1036233,679.18,677.79,1.318961]
[1752567746730,1.1036233,679.17,677.79,1.318961]
[1752567747033,1.1036233,679.16,677.79,1.318961]
[1752567747234,1.1036233,679.15,677.79,1.318961]
[1752567747435,1.1036233,679.14,677.79,1.318961]
[1752567747730,1.1036233,679.13,677.79,1.318961]
[1752567748031,1.1036233,679.12,677.79,1.318961]
[1752567748234,0.25637342,679.24,677.79,1.318961]
[1752567748631,1.1034798,679.23,677.79,1.318961]
[1752567748835,1.1034798,679.22,677.85,1.318961]
[1752567749134,0.25637342,679.24,677.85,1.318961]
[1752567749135,1.1034798,679.21,677.85,1.318961]
[1752567749334,1.1034798,679.2,677.85,1.318961]
[1752567749534,1.1034798,679.19,677.85,1.318961]
[1752567749732,1.1034798,679.18,677.85,1.318961]
[1752567749936,1.1034798,679.17,677.85,1.318961]
[1752567750136,1.1034798,679.16,677.85,1.318961]
[1752567750337,1.1034798,679.15,677.85,1.318961]
[1752567750538,1.1034798,679.14,677.85,1.318961]
[1752567750836,1.1034798,679.13,677.86,1.318961]
[1752567751038,1.1034798,679.12,677.83,1.318961]
[1752567751238,1.1034798,679.11,677.83,1.318961]
[1752567751435,0.98476231,679.3,677.83,1.318961]
[1752567752734,0.98476231,679.28,677.84,1.318961]
[1752567752936,0.98476231,679.31,677.87,1.318961]
[1752567753137,1.102753,679.34,677.84,1.318961]
[1752567753341,1.102753,679.33,677.86,1.318961]
[1752567753539,1.102753,679.32,677.86,1.318961]
[1752567753737,1.102753,679.31,677.86,1.318961]
[1752567754039,1.102753,679.3,677.88,1.318961]
[1752567754241,1.102753,679.29,677.87,1.318961]
[1752567754443,1.102753,679.28,677.88,1.318961]
[1752567754643,1.102753,679.27,677.88,1.318961]
[1752567754943,1.102753,679.26,677.85,1.318961]
[1752567755244,1.102753,679.25,677.85,1.318961]
[1752567755445,1.102753,679.24,677.91,1.318961]
[1752567755644,1.102753,679.23,677.91,1.318961]
[1752567755941,1.102753,679.22,677.91,1.318961]
[1752567756140,1.102753,679.21,677.91,1.318961]
[1752567756441,1.102753,679.2,677.88,1.318961]
[1752567756643,1.102753,679.19,677.88,1.318961]
[1752567756843,1.102753,679.18,677.84,1.318961]
[1752567757046,1.102753,679.17,677.83,1.318961]
[1752567757240,1.102753,679.16,677.83,1.318961]
[1752567757442,0.98476231,679.2,677.83,1.318961]
[1752567757646,1.1025778,679.19,677.83,1.318961]
[1752567757845,0.98476231,679.2,677.83,1.318961]
[1752567757846,1.1025778,679.18,677.83,1.318961]
[1752567758044,1.1025778,679.17,677.79,1.318961]
[1752567758246,1.1025778,679.16,677.79,1.318961]
[1752567758446,0.25634604,679.35,676.41,6.594806]
[1752567758447,0.97909152,679.15,677.73,1.318961]
[1752567758747,1.1027477,679.14,677.73,1.318961]
[1752567758953,1.1027477,679.13,677.73,1.318961]
[1752567759244,1.1027477,679.12,677.75,1.318961]
[1752567759447,1.1027477,679.11,677.75,1.318961]
[1752567759644,1.1027477,679.1,677.75,1.318961]
[1752567759847,1.1027477,679.09,677.75,1.318961]
[1752567760048,1.1027477,679.08,677.75,1.318961]
[1752567760248,1.1027477,679.07,677.76,1.318961]
[1752567760448,1.1027477,679.06,677.76,1.318961]
[1752567760744,1.1027477,679.05,677.76,1.318961]
[1752567760950,1.1027477,679.04,677.76,1.318961]
[1752567761243,1.1027477,679.03,677.77,1.318961]
[1752567761448,1.1027477,679.02,677.77,1.318961]
[1752567761748,1.1027477,679.01,677.77,1.318961]
[1752567762047,1.1027477,679.0,677.77,1.318961]
[1752567762249,1.1027477,678.99,677.78,1.318961]
[1752567762451,1.1027477,678.98,677.79,1.318961]
[1752567762750,0.97909152,679.16,677.73,1.318961]
[1752567762949,0.97909152,679.22,677.65,1.318961]
[1752567763246,0.97909152,679.22,677.44,1.978441]
[1752567763247,0.97909152,679.22,677.66,1.318961]
[1752567763450,0.97909152,679.22,677.67,1.318961]
[1752567763649,0.97909152,679.22,677.71,1.318961]
[1752567763851,0.97909152,679.26,677.71,1.318961]
[1752567764250,0.97909152,679.25,677.73,1.318961]
[1752567764650,2.08307252,679.25,677.73,1.318961]
[1752567764949,1.103981,679.24,677.8,1.318961]
[1752567765147,1.103981,679.23,677.8,1.318961]
[1752567765348,0.97909152,679.2,677.96,1.318961]
[1752567766353,0.97909152,679.19,677.98,1.318961]
[1752567766747,0.97909152,679.21,678.15,0.98526699]
[1752567766952,0.97909152,679.22,678.16,0.98526699]
[1752567767246,0.97909152,679.21,678.17,0.98526699]
[1752567768257,0.97909152,679.22,678.17,0.98526699]
[1752567768453,1.1053171,679.27,677.29,3.297403]
[1752567768454,0.97909152,679.21,678.19,0.98526699]
[1752567768654,0.97909152,679.21,677.0,4.616364]
[1752567768655,0.97909152,679.22,678.18,0.98526699]
[1752567768856,1.1053171,679.24,678.28,0.98526699]
[1752567769054,1.1053171,679.23,678.28,0.98526699]
[1752567769256,1.1053171,679.22,678.29,0.98526699]
[1752567769452,1.1053171,679.21,678.28,0.98526699]
[1752567769656,1.1053171,679.2,678.36,0.98526699]
[1752567769855,0.97909152,679.42,678.35,0.98526699]
[1752567770057,1.1059344,679.41,678.42,0.98526699]
[1752567770353,1.1059344,679.4,678.43,0.98526699]
[1752567770656,1.1059344,679.39,678.45,0.98526699]
[1752567770855,1.1059344,679.38,678.45,0.98526699]
[1752567771052,1.1059344,679.37,678.45,0.98526699]
[1752567771255,1.1059344,679.36,678.43,0.98526699]
[1752567771450,1.1059344,679.35,678.45,0.98526699]
[1752567771657,1.1059344,679.34,678.45,0.98526699]
[1752567771854,1.1059344,679.33,678.45,0.98526699]
[1752567772053,1.1059344,679.32,678.45,0.98526699]
[1752567772257,0.97909152,679.5,678.45,0.98526699]
[1752567772553,1.1064042,679.49,678.53,0.98526699]
[1752567772757,1.1064042,679.48,678.53,0.98526699]
[1752567772956,1.1064042,679.47,678.53,0.98526699]
[1752567773255,1.1064042,679.46,678.53,0.98526699]
[1752567773456,1.1064042,679.45,678.53,0.98526699]
[1752567773752,1.1064042,679.44,678.55,0.98526699]
[1752567773954,1.1064042,679.44,678.29,1.978441]
[1752567773955,1.1064042,679.43,678.56,0.98526699]
[1752567774155,1.1064042,679.42,678.56,0.98526699]
[1752567774355,1.1064042,679.41,678.55,0.98526699]
[1752567774555,1.1064042,679.4,678.55,0.98526699]
[1752567774755,1.1064042,679.39,678.55,0.98526699]
[1752567774956,1.1064042,679.38,678.55,0.98526699]
[1752567775156,0.25623845,679.52,678.55,0.98526699]
[1752567775358,1.36288245,679.52,678.54,0.98526699]
[1752567775558,1.106644,679.51,678.54,0.98526699]
[1752567775755,1.106644,679.5,678.54,0.98526699]
[1752567775956,1.1063366,679.49,678.55,0.98526699]
[1752567776154,1.1063366,679.48,678.53,0.98526699]
[1752567776357,1.1063366,679.47,678.54,0.98526699]
[1752567776555,1.1063366,679.46,678.54,0.98526699]
[1752567776755,1.1063366,679.45,678.54,0.98526699]
[1752567776959,1.1063366,679.44,678.54,0.98526699]
[1752567777158,1.1063366,679.43,678.54,0.98526699]
[1752567777358,1.1063366,679.42,678.54,0.98526699]
[1752567777557,1.1063366,679.41,678.54,0.98526699]
[1752567777757,0.25623845,679.52,678.54,0.98526699]
[1752567777758,1.1063366,679.4,678.54,0.98526699]
[1752567778057,1.1063366,679.4,677.4,4.616364]
[1752567778058,1.1063366,679.39,678.53,0.98526699]
[1752567778260,1.1063366,679.38,678.53,0.98526699]
[1752567778458,0.25623845,679.52,678.53,0.98526699]
[1752567779361,0.25623845,679.52,678.54,0.98526699]
[1752567779558,0.25623845,679.52,678.53,0.98526699]
[1752567780162,1.36256645,679.52,678.53,0.98526699]
[1752567780362,1.106328,679.51,678.52,0.98526699]
[1752567780659,1.106328,679.5,678.5,0.98526699]
[1752567780863,1.106328,679.49,678.5,0.98526699]
[1752567781160,1.106328,679.48,678.5,0.98526699]
[1752567781358,1.106328,679.47,678.5,0.98526699]
[1752567781562,1.106328,679.46,678.51,0.98526699]
[1752567781761,1.106328,679.45,678.51,0.98526699]
[1752567781962,1.106328,679.44,678.51,0.98526699]
[1752567782166,1.106328,679.43,678.51,0.98526699]
[1752567782363,1.106328,679.42,678.51,0.98526699]
[1752567782664,0.25623845,679.52,678.51,0.98526699]
[1752567782665,1.106328,679.41,678.51,0.98526699]
[1752567782864,1.106328,679.4,678.51,0.98526699]
[1752567783065,1.10539399,679.39,678.51,0.98526699]
[1752567783265,1.23532997,679.52,678.52,0.98526699]
[1752567783465,1.10563872,679.51,678.52,0.98526699]
[1752567783663,1.10563872,679.51,678.37,1.318961]
[1752567783664,1.10563872,679.51,678.5,0.98526699]
[1752567783866,1.10563872,679.5,678.5,0.98526699]
[1752567784068,1.10563872,679.49,678.5,0.98526699]
[1752567784265,0.25623845,679.52,678.51,0.98526699]
[1752567784266,1.10563872,679.48,678.51,0.98526699]
[1752567784466,1.10563872,679.47,678.51,0.98526699]
[1752567784668,1.10563872,679.46,678.51,0.98526699]
[1752567784870,1.10563872,679.45,678.51,0.98526699]
[1752567785171,1.10563872,679.44,678.51,0.98526699]
[1752567785466,1.10563872,679.43,678.52,0.98526699]
[1752567785666,1.10563872,679.42,678.52,0.98526699]
[1752567785870,1.10563872,679.41,678.52,0.98526699]
[1752567786066,1.10563872,679.4,678.52,0.98526699]
[1752567786271,1.10563872,679.39,678.52,0.98526699]
[1752567786467,1.10563872,679.38,678.52,0.98526699]
[1752567786671,1.10563872,679.37,678.52,0.98526699]
[1752567786868,1.10563872,679.36,678.52,0.98526699]
[1752567787070,1.10563872,679.35,678.54,0.98526699]
[1752567787269,1.23532997,679.52,678.53,0.98526699]
[1752567787473,1.10578584,679.51,678.56,0.98526699]
[1752567787670,1.10578584,679.5,678.56,0.98526699]
[1752567787973,1.10578584,679.49,678.56,0.98526699]
[1752567788173,1.10578584,679.48,678.56,0.98526699]
[1752567788473,1.10578584,679.47,678.56,0.98526699]
[1752567788673,1.10578584,679.46,678.56,0.98526699]
[1752567788970,1.10578584,679.45,678.56,0.98526699]
[1752567789170,1.10578584,679.44,678.58,0.98526699]
[1752567789371,1.10578584,679.43,678.58,0.98526699]
[1752567789671,1.10578584,679.42,678.58,0.98526699]
[1752567789974,1.10578584,679.41,678.58,0.98526699]
[1752567790175,0.97909152,679.57,678.59,0.98526699]
[1752567790374,0.97909152,679.57,678.58,0.98526699]
[1752567790676,0.97909152,679.58,678.58,0.98526699]
[1752567791176,1.1058948,679.59,678.55,0.98526699]
[1752567791376,1.1058948,679.58,678.54,0.98526699]
[1752567791576,1.1058948,679.57,678.54,0.98526699]
[1752567791778,1.1058948,679.57,678.17,1.978441]
[1752567791779,1.1058948,679.56,678.58,0.98526699]
[1752567791976,1.1058948,679.55,678.59,0.98526699]
[1752567792275,0.25617337,679.68,678.23,1.978441]
[1752567792276,0.97909152,679.66,678.58,0.98526699]
[1752567792480,1.1058727,679.65,678.58,0.98526699]
[1752567792779,1.1058727,679.64,678.58,0.98526699]
[1752567792979,1.1058563,679.63,678.58,0.98526699]
[1752567793176,1.1058563,679.62,678.58,0.98526699]
[1752567793376,1.1058563,679.61,678.58,0.98526699]
[1752567793577,1.1058563,679.6,678.61,0.98526699]
[1752567793776,1.1058563,679.59,678.61,0.98526699]
[1752567793982,1.1058563,679.58,678.61,0.98526699]
[1752567794182,1.1058563,679.57,678.61,0.98526699]
[1752567794381,1.1058563,679.56,678.6,0.98526699]
[1752567794579,1.1058563,679.55,678.6,0.98526699]
[1752567794778,1.1058563,679.54,678.6,0.98526699]
[1752567794982,1.1058563,679.53,678.6,0.98526699]
[1752567795283,1.1058563,679.52,678.59,0.98526699]
[1752567795481,1.1056313,679.51,678.59,0.98526699]
[1752567795781,0.25617337,679.68,678.55,0.98526699]
[1752567796277,0.25617337,679.68,678.54,0.98526699]
[1752567797981,0.25617337,679.68,678.53,0.98526699]
[1752567798882,0.25617337,679.68,678.52,0.98526699]
[1752567799586,1.1056313,679.7,678.51,0.98526699]
[1752567799785,1.1056313,679.69,678.54,0.98526699]
[1752567799985,1.1056313,679.68,678.54,0.98526699]
[1752567800286,1.1056313,679.67,678.53,0.98526699]
[1752567800486,1.1056313,679.66,678.56,0.98526699]
[1752567800782,1.1056313,679.65,678.56,0.98526699]
[1752567800986,1.1056313,679.64,678.56,0.98526699]
[1752567801183,1.1056313,679.63,678.56,0.98526699]
[1752567801383,0.25615169,679.77,678.56,0.98526699]
[1752567801785,0.25615169,679.77,678.55,0.98526699]
[1752567804285,0.25615169,679.77,678.56,0.98526699]
[1752567804488,0.25615169,679.77,678.55,0.98526699]
[1752567805587,0.25615169,679.77,678.58,0.98526699]
[1752567807390,1.36162179,679.77,678.58,0.98526699]
[1752567807589,1.1054701,679.76,678.58,0.98526699]
[1752567807785,1.1054701,679.75,678.58,0.98526699]
[1752567807993,1.1054701,679.74,678.58,0.98526699]
[1752567808188,1.1054701,679.73,678.58,0.98526699]
[1752567808386,1.1054701,679.72,678.6,0.98526699]
[1752567808589,0.25615169,679.77,678.61,0.98526699]
[1752567808590,1.1054701,679.71,678.61,0.98526699]
[1752567808788,0.25615169,679.77,678.63,0.98526699]
[1752567808789,1.1054701,679.7,678.63,0.98526699]